[Event "Live Chess"]
[Site "Chess.com"]
[Date "2023.05.21"]
[Round "-"]
[White "srichess4u"]
[Black "TheAuditer"]
[Result "0-1"]
[WhiteElo "643"]
[BlackElo "1399"]
[TimeControl "300"]
[EndTime "5:02:02 PDT"]
[Termination "TheAuditer won by checkmate"]

1. e4 {[%clk 0:04:58.3]} 1... e6 {[%clk 0:04:58.7]} 2. Nf3 {[%clk 0:04:53.5]}
2... d5 {[%clk 0:04:57.2]} 3. e5 {[%clk 0:04:51.3]} 3... c5 {[%clk 0:04:55]} 4.
Bb5+ {[%clk 0:04:48.4]} 4... Bd7 {[%clk 0:04:51.5]} 5. Bd3 {[%clk 0:04:42.4]}
5... Nc6 {[%clk 0:04:48.8]} 6. Ng5 {[%clk 0:04:40]} 6... Qxg5 {[%clk 0:04:41.8]}
7. O-O {[%clk 0:04:37.9]} 7... Nxe5 {[%clk 0:04:28.3]} 8. Be2 {[%clk 0:04:34.3]}
8... Qd8 {[%clk 0:04:17.4]} 9. Bh5 {[%clk 0:04:28.9]} 9... Nf6 {[%clk
0:04:14.9]} 10. Be2 {[%clk 0:04:25.7]} 10... Bd6 {[%clk 0:04:11.6]} 11. Nc3
{[%clk 0:04:24.1]} 11... Qc7 {[%clk 0:04:02.9]} 12. Nb5 {[%clk 0:04:20.7]} 12...
Bxb5 {[%clk 0:03:53.6]} 13. Bxb5+ {[%clk 0:04:18.9]} 13... Nc6 {[%clk
0:03:52.9]} 14. Qe2 {[%clk 0:04:12.9]} 14... Bxh2+ {[%clk 0:03:47]} 15. Kh1
{[%clk 0:04:09.5]} 15... Bd6 {[%clk 0:03:44.7]} 16. Re1 {[%clk 0:04:05]} 16...
O-O-O {[%clk 0:03:40.8]} 17. Bd3 {[%clk 0:04:02.1]} 17... h5 {[%clk 0:03:30.5]}
18. c4 {[%clk 0:03:59]} 18... h4 {[%clk 0:03:22.7]} 19. cxd5 {[%clk 0:03:55.4]}
19... Nxd5 {[%clk 0:03:21.4]} 20. Kg1 {[%clk 0:03:44.7]} 20... Nf4 {[%clk
0:03:19.1]} 21. Qg4 {[%clk 0:03:38.4]} 21... Nxd3 {[%clk 0:03:14.1]} 22. Rd1
{[%clk 0:03:34.2]} 22... f5 {[%clk 0:02:55.8]} 23. Qg5 {[%clk 0:03:24.5]} 23...
Bf4 {[%clk 0:02:41.6]} 24. Qg6 {[%clk 0:03:14.1]} 24... Qe7 {[%clk 0:02:24.4]}
25. b3 {[%clk 0:02:57.9]} 25... h3 {[%clk 0:02:18.1]} 26. gxh3 {[%clk 0:02:52]}
26... Rxh3 {[%clk 0:02:03.2]} 27. Qg2 {[%clk 0:02:37.5]} 27... Rdh8 {[%clk
0:01:59.7]} 28. Ba3 {[%clk 0:02:33.8]} 28... Qg5 {[%clk 0:01:33.4]} 29. Qxg5
{[%clk 0:02:14.3]} 29... Bxg5 {[%clk 0:01:32.3]} 30. Rac1 {[%clk 0:02:08.2]}
30... Rh1+ {[%clk 0:01:30.3]} 31. Kg2 {[%clk 0:02:05.7]} 31... R8h2+ {[%clk
0:01:29.3]} 32. Kg3 {[%clk 0:02:03.6]} 32... Bh4+ {[%clk 0:01:17.4]} 33. Kf3
{[%clk 0:02:01.2]} 33... Rxf2+ {[%clk 0:00:57.5]} 34. Ke3 {[%clk 0:01:59.1]}
34... Rxd1 {[%clk 0:00:38.7]} 35. Rxd1 {[%clk 0:01:57.2]} 35... Ncb4 {[%clk
0:00:28.2]} 36. Bb2 {[%clk 0:01:52.4]} 36... Nxb2 {[%clk 0:00:25.7]} 37. d3
{[%clk 0:01:47.8]} 37... e5 {[%clk 0:00:19.5]} 38. Rh1 {[%clk 0:01:45.6]} 38...
Nc2# {[%clk 0:00:13.5]} 0-1

[Event "Live Chess"]
[Site "Chess.com"]
[Date "2023.05.21"]
[Round "-"]
[White "LiamClery2020"]
[Black "LiamBellwood"]
[Result "0-1"]
[WhiteElo "1978"]
[BlackElo "1904"]
[TimeControl "300"]
[EndTime "5:02:12 PDT"]
[Termination "LiamBellwood won by resignation"]

1. e4 {[%clk 0:04:59.6]} 1... e6 {[%clk 0:04:59.2]} 2. d4 {[%clk 0:04:55.6]}
2... d5 {[%clk 0:04:59.1]} 3. Nd2 {[%clk 0:04:54.5]} 3... Nc6 {[%clk 0:04:57.5]}
4. Ngf3 {[%clk 0:04:52.4]} 4... Nf6 {[%clk 0:04:55.8]} 5. e5 {[%clk 0:04:51.4]}
5... Nd7 {[%clk 0:04:55.4]} 6. c3 {[%clk 0:04:49.7]} 6... f6 {[%clk 0:04:52.8]}
7. exf6 {[%clk 0:04:47.1]} 7... Qxf6 {[%clk 0:04:52.7]} 8. Bd3 {[%clk
0:04:46.2]} 8... Bd6 {[%clk 0:04:52.2]} 9. O-O {[%clk 0:04:43.5]} 9... O-O
{[%clk 0:04:51.7]} 10. Re1 {[%clk 0:04:41.8]} 10... e5 {[%clk 0:04:50]} 11. dxe5
{[%clk 0:04:40.8]} 11... Ndxe5 {[%clk 0:04:43.7]} 12. Nxe5 {[%clk 0:04:39.6]}
12... Qxf2+ {[%clk 0:04:42.3]} 13. Kh1 {[%clk 0:04:38.7]} 13... Nxe5 {[%clk
0:04:42.2]} 14. Rf1 {[%clk 0:04:35.8]} 14... Nxd3 {[%clk 0:04:32.5]} 15. Rxf2
{[%clk 0:04:31.5]} 15... Nxf2+ {[%clk 0:04:32.4]} 0-1

[Event "Live Chess"]
[Site "Chess.com"]
[Date "2023.05.21"]
[Round "-"]
[White "ViktorTheCoolBoy"]
[Black "McSlash1"]
[Result "1-0"]
[WhiteElo "2478"]
[BlackElo "2002"]
[TimeControl "300"]
[EndTime "5:02:31 PDT"]
[Termination "ViktorTheCoolBoy won by resignation"]

1. d4 {[%clk 0:04:58]} 1... Nf6 {[%clk 0:04:58.9]} 2. c4 {[%clk 0:04:57.2]} 2...
g6 {[%clk 0:04:56]} 3. Nc3 {[%clk 0:04:55.9]} 3... d5 {[%clk 0:04:55.7]} 4. cxd5
{[%clk 0:04:54.3]} 4... Nxd5 {[%clk 0:04:55.6]} 5. e4 {[%clk 0:04:53.6]} 5...
Nxc3 {[%clk 0:04:54.4]} 6. bxc3 {[%clk 0:04:53.5]} 6... Bg7 {[%clk 0:04:53.7]}
7. Nf3 {[%clk 0:04:53]} 7... O-O {[%clk 0:04:53]} 8. Bd3 {[%clk 0:04:47.6]} 8...
c5 {[%clk 0:04:52.6]} 9. O-O {[%clk 0:04:44.7]} 9... cxd4 {[%clk 0:04:51.4]} 10.
cxd4 {[%clk 0:04:44.5]} 10... Nc6 {[%clk 0:04:51]} 11. d5 {[%clk 0:04:42.2]}
11... Ne5 {[%clk 0:04:49.5]} 12. Nxe5 {[%clk 0:04:17.5]} 12... Bxe5 {[%clk
0:04:49.4]} 13. Rb1 {[%clk 0:04:16.8]} 13... b6 {[%clk 0:04:46.6]} 14. Bh6
{[%clk 0:04:11.5]} 14... Bg7 {[%clk 0:04:45.5]} 15. Bxg7 {[%clk 0:04:10.1]}
15... Kxg7 {[%clk 0:04:45.4]} 16. Qd2 {[%clk 0:04:08.8]} 16... a5 {[%clk
0:04:43.6]} 17. Qb2+ {[%clk 0:04:05.5]} 17... Kg8 {[%clk 0:04:39.6]} 18. Qxb6
{[%clk 0:04:04.4]} 18... Qxb6 {[%clk 0:04:39.2]} 19. Rxb6 {[%clk 0:04:02.9]}
19... f5 {[%clk 0:04:34.6]} 20. e5 {[%clk 0:04:01.1]} 20... f4 {[%clk
0:04:33.9]} 21. Rc1 {[%clk 0:03:58.9]} 21... Rd8 {[%clk 0:04:32.9]} 22. Rc7
{[%clk 0:03:55.7]} 22... Rxd5 {[%clk 0:04:27.2]} 23. Bc4 {[%clk 0:03:54.4]}
23... e6 {[%clk 0:04:14.9]} 24. Bxd5 {[%clk 0:03:51.9]} 24... exd5 {[%clk
0:04:14.8]} 25. e6 {[%clk 0:03:50.1]} 25... Kf8 {[%clk 0:04:03]} 26. Rxh7 {[%clk
0:03:48.2]} 26... Bxe6 {[%clk 0:03:58.9]} 27. Rxe6 {[%clk 0:03:46.4]} 27... Rc8
{[%clk 0:03:57.5]} 28. Rh8+ {[%clk 0:03:45.5]} 1-0

[Event "Live Chess"]
[Site "Chess.com"]
[Date "2023.05.21"]
[Round "-"]
[White "RockTroll"]
[Black "chrisbradgate"]
[Result "1-0"]
[WhiteElo "2221"]
[BlackElo "865"]
[TimeControl "300"]
[EndTime "5:02:42 PDT"]
[Termination "RockTroll won by checkmate"]

1. g3 {[%clk 0:04:58.1]} 1... e5 {[%clk 0:04:56.8]} 2. Bg2 {[%clk 0:04:58]} 2...
Bd6 {[%clk 0:04:55.3]} 3. d3 {[%clk 0:04:57.9]} 3... Qf6 {[%clk 0:04:54]} 4. Nc3
{[%clk 0:04:56.7]} 4... Bc5 {[%clk 0:04:50]} 5. Ne4 {[%clk 0:04:55.7]} 5... Qe6
{[%clk 0:04:47.1]} 6. Nxc5 {[%clk 0:04:54.3]} 6... Qd5 {[%clk 0:04:45.8]} 7.
Bxd5 {[%clk 0:04:52.5]} 7... Nc6 {[%clk 0:04:44.7]} 8. Bxc6 {[%clk 0:04:51.6]}
8... dxc6 {[%clk 0:04:43.7]} 9. e4 {[%clk 0:04:50.3]} 9... Be6 {[%clk
0:04:42.7]} 10. Nb3 {[%clk 0:04:49.3]} 10... O-O-O {[%clk 0:04:41.2]} 11. Nf3
{[%clk 0:04:48]} 11... Ne7 {[%clk 0:04:40.2]} 12. Nxe5 {[%clk 0:04:47.1]} 12...
Rhe8 {[%clk 0:04:37.5]} 13. O-O {[%clk 0:04:45.6]} 13... f6 {[%clk 0:04:35.1]}
14. Nf3 {[%clk 0:04:43.6]} 14... Bg4 {[%clk 0:04:32.7]} 15. Kg2 {[%clk 0:04:42]}
15... Ng6 {[%clk 0:04:29.8]} 16. h3 {[%clk 0:04:41.3]} 16... Be6 {[%clk
0:04:25.5]} 17. Be3 {[%clk 0:04:38.2]} 17... h5 {[%clk 0:04:20.9]} 18. Qd2
{[%clk 0:04:32.8]} 18... Rh8 {[%clk 0:04:19.6]} 19. Qa5 {[%clk 0:04:31.5]} 19...
a6 {[%clk 0:04:14.8]} 20. Nc5 {[%clk 0:04:30.7]} 20... h4 {[%clk 0:04:11.4]} 21.
Nxe6 {[%clk 0:04:29.3]} 21... Rd7 {[%clk 0:03:59.3]} 22. Nc5 {[%clk 0:04:26.2]}
22... Re7 {[%clk 0:03:56.1]} 23. Nxa6 {[%clk 0:04:23.8]} 23... bxa6 {[%clk
0:03:52.1]} 24. Qxa6+ {[%clk 0:04:22.6]} 24... Kd7 {[%clk 0:03:51.4]} 25. Nd4
{[%clk 0:04:20.6]} 25... Rh5 {[%clk 0:03:46.5]} 26. Qxc6+ {[%clk 0:04:19.1]}
26... Kc8 {[%clk 0:03:41.6]} 27. Nf5 {[%clk 0:04:16.3]} 27... Rd7 {[%clk
0:03:34]} 28. Qa8# {[%clk 0:04:14.2]} 1-0

[Event "Live Chess"]
[Site "Chess.com"]
[Date "2023.05.21"]
[Round "-"]
[White "Long1968"]
[Black "Crowded_House"]
[Result "0-1"]
[WhiteElo "960"]
[BlackElo "1631"]
[TimeControl "300"]
[EndTime "5:02:43 PDT"]
[Termination "Crowded_House won on time"]

1. e4 {[%clk 0:04:56.7]} 1... e6 {[%clk 0:04:57.6]} 2. d4 {[%clk 0:04:52.5]}
2... d5 {[%clk 0:04:57.2]} 3. Nc3 {[%clk 0:04:49.6]} 3... Bb4 {[%clk 0:04:54.6]}
4. e5 {[%clk 0:04:42.9]} 4... c5 {[%clk 0:04:52.6]} 5. Bd2 {[%clk 0:04:39]} 5...
cxd4 {[%clk 0:04:49.1]} 6. Nb5 {[%clk 0:04:34]} 6... Bxd2+ {[%clk 0:04:46.1]} 7.
Qxd2 {[%clk 0:04:27.8]} 7... Ne7 {[%clk 0:04:27.9]} 8. Nd6+ {[%clk 0:04:19.2]}
8... Kf8 {[%clk 0:04:23.9]} 9. Qxd4 {[%clk 0:03:53.8]} 9... Nf5 {[%clk
0:04:22.8]} 10. Nxf5 {[%clk 0:03:42.8]} 10... exf5 {[%clk 0:04:21.9]} 11. Rd1
{[%clk 0:03:34.2]} 11... Be6 {[%clk 0:04:17.1]} 12. c3 {[%clk 0:03:12.7]} 12...
Nc6 {[%clk 0:04:11.1]} 13. Qc5+ {[%clk 0:02:48.1]} 13... Qe7 {[%clk 0:04:05.9]}
14. Qxe7+ {[%clk 0:02:38.6]} 14... Kxe7 {[%clk 0:04:05]} 15. f4 {[%clk
0:02:25.9]} 15... f6 {[%clk 0:03:52.9]} 16. Nf3 {[%clk 0:02:06.1]} 16... fxe5
{[%clk 0:03:42.9]} 17. fxe5 {[%clk 0:01:59.1]} 17... h6 {[%clk 0:03:35.9]} 18.
h4 {[%clk 0:01:51.8]} 18... f4 {[%clk 0:03:22]} 19. Bb5 {[%clk 0:01:34.9]} 19...
a6 {[%clk 0:03:16.4]} 20. Bxc6 {[%clk 0:01:30.9]} 20... bxc6 {[%clk 0:03:14.3]}
21. Nd4 {[%clk 0:01:19.8]} 21... Rac8 {[%clk 0:03:04.4]} 22. Nxe6 {[%clk
0:00:58.2]} 22... Kxe6 {[%clk 0:03:02.7]} 23. O-O {[%clk 0:00:40]} 23... Kxe5
{[%clk 0:02:56.5]} 24. Rde1+ {[%clk 0:00:35]} 24... Kd6 {[%clk 0:02:43.9]} 25.
Rxf4 {[%clk 0:00:29.7]} 25... Rhf8 {[%clk 0:02:42.9]} 26. Ref1 {[%clk
0:00:22.3]} 26... Rxf4 {[%clk 0:02:40.4]} 27. Rxf4 {[%clk 0:00:18.9]} 27... Rc7
{[%clk 0:02:40]} 28. Kf2 {[%clk 0:00:14.1]} 28... Ke6 {[%clk 0:02:33.8]} 29. Ra4
{[%clk 0:00:06]} 29... Ra7 {[%clk 0:02:30.6]} 30. c4 {[%clk 0:00:00.3]} 30...
dxc4 {[%clk 0:02:28.9]} 0-1

[Event "Live Chess"]
[Site "Chess.com"]
[Date "2023.05.21"]
[Round "-"]
[White "mach247"]
[Black "HoarseyHorsey"]
[Result "1/2-1/2"]
[WhiteElo "1354"]
[BlackElo "1487"]
[TimeControl "300"]
[EndTime "5:02:47 PDT"]
[Termination "Game drawn by stalemate"]

1. e4 {[%clk 0:04:59]} 1... c5 {[%clk 0:04:58.7]} 2. Nf3 {[%clk 0:04:57.7]} 2...
e6 {[%clk 0:04:58.1]} 3. d4 {[%clk 0:04:56.9]} 3... cxd4 {[%clk 0:04:57.4]} 4.
Nxd4 {[%clk 0:04:56.8]} 4... Nf6 {[%clk 0:04:56.8]} 5. Nc3 {[%clk 0:04:55.8]}
5... Nc6 {[%clk 0:04:56.1]} 6. Be2 {[%clk 0:04:54.2]} 6... Bb4 {[%clk
0:04:54.4]} 7. f3 {[%clk 0:04:50.4]} 7... d5 {[%clk 0:04:49.8]} 8. exd5 {[%clk
0:04:33.4]} 8... exd5 {[%clk 0:04:49.7]} 9. Nxc6 {[%clk 0:04:29.6]} 9... bxc6
{[%clk 0:04:49.6]} 10. Bd2 {[%clk 0:04:23.7]} 10... d4 {[%clk 0:04:35]} 11. Ne4
{[%clk 0:04:15.2]} 11... Bxd2+ {[%clk 0:04:31.3]} 12. Nxd2 {[%clk 0:04:10.8]}
12... O-O {[%clk 0:04:22]} 13. O-O {[%clk 0:04:00.8]} 13... Re8 {[%clk 0:04:21]}
14. Bd3 {[%clk 0:03:56.3]} 14... Be6 {[%clk 0:04:05.7]} 15. Ne4 {[%clk
0:03:51.4]} 15... Nxe4 {[%clk 0:04:03.8]} 16. Bxe4 {[%clk 0:03:50.6]} 16... Bd5
{[%clk 0:03:33.8]} 17. Bxd5 {[%clk 0:03:29.3]} 17... Qxd5 {[%clk 0:03:32.6]} 18.
Qd3 {[%clk 0:03:24.9]} 18... c5 {[%clk 0:03:29.3]} 19. c4 {[%clk 0:03:19.4]}
19... Qd6 {[%clk 0:03:24.3]} 20. Rfe1 {[%clk 0:03:13.4]} 20... Re6 {[%clk
0:03:17.4]} 21. Rxe6 {[%clk 0:03:01.9]} 21... Qxe6 {[%clk 0:03:17.3]} 22. Kf2
{[%clk 0:02:56.7]} 22... Re8 {[%clk 0:03:10.7]} 23. Qd2 {[%clk 0:02:45.8]} 23...
Qxc4 {[%clk 0:03:04.4]} 24. b3 {[%clk 0:02:41.8]} 24... Qe6 {[%clk 0:02:57.2]}
25. Re1 {[%clk 0:02:39.6]} 25... Qxe1+ {[%clk 0:02:55.5]} 26. Qxe1 {[%clk
0:02:38.4]} 26... Rxe1 {[%clk 0:02:54.6]} 27. Kxe1 {[%clk 0:02:38.3]} 27... f5
{[%clk 0:02:48.9]} 28. Kd2 {[%clk 0:02:37.8]} 28... Kf7 {[%clk 0:02:48.3]} 29.
Kd3 {[%clk 0:02:37.4]} 29... Ke6 {[%clk 0:02:47.8]} 30. b4 {[%clk 0:02:37.1]}
30... Kd5 {[%clk 0:02:41.4]} 31. bxc5 {[%clk 0:02:36.2]} 31... Kxc5 {[%clk
0:02:40.5]} 32. h4 {[%clk 0:02:32.8]} 32... a5 {[%clk 0:02:26.7]} 33. g4 {[%clk
0:02:31.9]} 33... fxg4 {[%clk 0:02:25]} 34. fxg4 {[%clk 0:02:31.3]} 34... g6
{[%clk 0:02:13.5]} 35. h5 {[%clk 0:02:29.6]} 35... gxh5 {[%clk 0:02:12.2]} 36.
gxh5 {[%clk 0:02:29.2]} 36... Kd5 {[%clk 0:01:55.7]} 37. a4 {[%clk 0:02:25.9]}
37... h6 {[%clk 0:01:52.8]} 38. Kd2 {[%clk 0:02:18.5]} 38... Kc4 {[%clk
0:01:49.6]} 39. Kc2 {[%clk 0:02:18]} 39... d3+ {[%clk 0:01:43.7]} 40. Kd2 {[%clk
0:02:17.5]} 40... Kd4 {[%clk 0:01:41.6]} 41. Kd1 {[%clk 0:02:14.2]} 41... Kc3
{[%clk 0:01:40.7]} 42. Kc1 {[%clk 0:02:13.8]} 42... d2+ {[%clk 0:01:13.5]} 43.
Kd1 {[%clk 0:02:12.9]} 43... Kd3 {[%clk 0:01:08.3]} 1/2-1/2

[Event "Live Chess"]
[Site "Chess.com"]
[Date "2023.05.21"]
[Round "-"]
[White "ranvir123"]
[Black "Ian-Morley"]
[Result "1-0"]
[WhiteElo "988"]
[BlackElo "1055"]
[TimeControl "300"]
[EndTime "5:02:58 PDT"]
[Termination "ranvir123 won by checkmate"]

1. e4 {[%clk 0:04:52.1]} 1... d5 {[%clk 0:04:57.8]} 2. exd5 {[%clk 0:04:49.8]}
2... Qxd5 {[%clk 0:04:56.9]} 3. Nf3 {[%clk 0:04:46.6]} 3... Nf6 {[%clk
0:04:55.6]} 4. Nc3 {[%clk 0:04:44.3]} 4... Qd6 {[%clk 0:04:54.4]} 5. d4 {[%clk
0:04:40.5]} 5... a6 {[%clk 0:04:53.1]} 6. Bg5 {[%clk 0:04:38.2]} 6... b5 {[%clk
0:04:50.8]} 7. Qd3 {[%clk 0:04:24.5]} 7... Bb7 {[%clk 0:04:48.8]} 8. O-O-O
{[%clk 0:04:19.3]} 8... Nbd7 {[%clk 0:04:45.6]} 9. Ne5 {[%clk 0:04:12.5]} 9...
Nxe5 {[%clk 0:04:43.9]} 10. dxe5 {[%clk 0:04:10.8]} 10... Qxd3 {[%clk
0:04:43.1]} 11. Rxd3 {[%clk 0:04:05.8]} 11... Nd7 {[%clk 0:04:37.8]} 12. Nd5
{[%clk 0:03:59.4]} 12... Bxd5 {[%clk 0:04:36.2]} 13. Rxd5 {[%clk 0:03:57.8]}
13... h6 {[%clk 0:04:34.8]} 14. Bf4 {[%clk 0:03:52.9]} 14... g5 {[%clk
0:04:33.6]} 15. Bg3 {[%clk 0:03:44.3]} 15... O-O-O {[%clk 0:04:30.9]} 16. c4
{[%clk 0:03:37]} 16... Nb6 {[%clk 0:04:28.5]} 17. Rxd8+ {[%clk 0:03:33.9]} 17...
Kxd8 {[%clk 0:04:27.6]} 18. cxb5 {[%clk 0:03:31.1]} 18... axb5 {[%clk
0:04:26.6]} 19. Bxb5 {[%clk 0:03:28.8]} 19... e6 {[%clk 0:04:26]} 20. Rd1+
{[%clk 0:03:23.8]} 20... Nd5 {[%clk 0:04:22.2]} 21. Bc4 {[%clk 0:03:17.8]} 21...
c6 {[%clk 0:04:20.6]} 22. Bxd5 {[%clk 0:03:10.2]} 22... cxd5 {[%clk 0:04:19.5]}
23. h4 {[%clk 0:03:09]} 23... Kc7 {[%clk 0:04:15.9]} 24. Rh1 {[%clk 0:03:03.5]}
24... Be7 {[%clk 0:04:14.1]} 25. hxg5 {[%clk 0:02:55.3]} 25... h5 {[%clk
0:04:13]} 26. Bf4 {[%clk 0:02:51]} 26... f6 {[%clk 0:04:04.4]} 27. gxf6 {[%clk
0:02:43.8]} 27... Bxf6 {[%clk 0:04:03]} 28. exf6+ {[%clk 0:02:41]} 28... Kd7
{[%clk 0:04:00.3]} 29. Be5 {[%clk 0:02:37.1]} 29... Rf8 {[%clk 0:03:58.7]} 30.
Rxh5 {[%clk 0:02:33.9]} 30... Kc6 {[%clk 0:03:57.3]} 31. g4 {[%clk 0:02:30]}
31... Kb5 {[%clk 0:03:56.2]} 32. g5 {[%clk 0:02:28.8]} 32... Kc4 {[%clk
0:03:55.6]} 33. g6 {[%clk 0:02:27.8]} 33... Kd3 {[%clk 0:03:54.9]} 34. g7 {[%clk
0:02:23]} 34... Ra8 {[%clk 0:03:53.4]} 35. Rh3+ {[%clk 0:02:11.4]} 35... Ke2
{[%clk 0:03:50]} 36. a3 {[%clk 0:02:06.2]} 36... Rc8+ {[%clk 0:03:48.7]} 37. Kb1
{[%clk 0:02:04.4]} 37... Kd2 {[%clk 0:03:46.1]} 38. Bc3+ {[%clk 0:01:53.5]}
38... Kd1 {[%clk 0:03:42.9]} 39. f7 {[%clk 0:01:47.3]} 39... d4 {[%clk 0:03:41]}
40. f8=Q {[%clk 0:01:43.3]} 40... Rxc3 {[%clk 0:03:39.3]} 41. bxc3 {[%clk
0:01:41.2]} 41... dxc3 {[%clk 0:03:38.8]} 42. Rxc3 {[%clk 0:01:39.2]} 42... e5
{[%clk 0:03:35.9]} 43. g8=Q {[%clk 0:01:38.3]} 43... e4 {[%clk 0:03:34.7]} 44.
Qd5+ {[%clk 0:01:35.4]} 44... Ke2 {[%clk 0:03:32.4]} 45. Qxe4+ {[%clk
0:01:32.8]} 45... Kf1 {[%clk 0:03:30.5]} 46. Rc1# {[%clk 0:01:30.3]} 1-0

[Event "Live Chess"]
[Site "Chess.com"]
[Date "2023.05.21"]
[Round "-"]
[White "SupremeTactician"]
[Black "mattihelenius2"]
[Result "1-0"]
[WhiteElo "2239"]
[BlackElo "491"]
[TimeControl "300"]
[EndTime "5:02:59 PDT"]
[Termination "SupremeTactician won by checkmate"]

1. e4 {[%clk 0:04:59.9]} 1... a6 {[%clk 0:04:57.4]} 2. d4 {[%clk 0:04:58.2]}
2... Nc6 {[%clk 0:04:56.3]} 3. d5 {[%clk 0:04:57.5]} 3... Nd4 {[%clk 0:04:55.2]}
4. Qxd4 {[%clk 0:04:56]} 4... h6 {[%clk 0:04:53.9]} 5. c4 {[%clk 0:04:55.3]}
5... Nf6 {[%clk 0:04:53.2]} 6. Nc3 {[%clk 0:04:54.3]} 6... e5 {[%clk 0:04:49.7]}
7. Qxe5+ {[%clk 0:04:52.8]} 7... Qe7 {[%clk 0:04:46.9]} 8. Qd4 {[%clk
0:04:51.8]} 8... Qe5 {[%clk 0:04:43.4]} 9. Qxe5+ {[%clk 0:04:50.2]} 9... Kd8
{[%clk 0:04:39.5]} 10. Bf4 {[%clk 0:04:47.8]} 10... Bd6 {[%clk 0:04:36.6]} 11.
Qd4 {[%clk 0:04:45.3]} 11... Bxf4 {[%clk 0:04:35.5]} 12. e5 {[%clk 0:04:44.8]}
12... g5 {[%clk 0:04:26.1]} 13. exf6 {[%clk 0:04:43.4]} 13... Re8+ {[%clk
0:04:23.8]} 14. Be2 {[%clk 0:04:42.4]} 14... Be5 {[%clk 0:04:10.9]} 15. Qd2
{[%clk 0:04:40.8]} 15... Bf4 {[%clk 0:04:07.5]} 16. Qd3 {[%clk 0:04:38.4]} 16...
d6 {[%clk 0:04:02.1]} 17. Nh3 {[%clk 0:04:37.4]} 17... Bxh3 {[%clk 0:04:00.5]}
18. gxh3 {[%clk 0:04:37.3]} 18... Kd7 {[%clk 0:03:56.7]} 19. Qf5+ {[%clk
0:04:36.1]} 19... Kd8 {[%clk 0:03:54.8]} 20. O-O {[%clk 0:04:35.2]} 20... Rh8
{[%clk 0:03:43.8]} 21. Bg4 {[%clk 0:04:33.9]} 21... Ke8 {[%clk 0:03:39]} 22.
Qd7+ {[%clk 0:04:33.8]} 22... Kf8 {[%clk 0:03:36]} 23. Qe7+ {[%clk 0:04:33.7]}
23... Kg8 {[%clk 0:03:34.6]} 24. Be6 {[%clk 0:04:33.6]} 24... Rf8 {[%clk
0:03:30.8]} 25. Bxf7+ {[%clk 0:04:31.3]} 25... Rxf7 {[%clk 0:03:26.2]} 26. Qe8+
{[%clk 0:04:30.9]} 26... Kh7 {[%clk 0:03:23.9]} 27. Qxf7# {[%clk 0:04:29.5]} 1-0

[Event "Live Chess"]
[Site "Chess.com"]
[Date "2023.05.21"]
[Round "-"]
[White "CeladonFish"]
[Black "JohanKjeldahl"]
[Result "1-0"]
[WhiteElo "1129"]
[BlackElo "1866"]
[TimeControl "300"]
[EndTime "5:03:11 PDT"]
[Termination "CeladonFish won by resignation"]

1. d4 {[%clk 0:04:58.3]} 1... Nf6 {[%clk 0:04:58.1]} 2. c4 {[%clk 0:04:57.5]}
2... e5 {[%clk 0:04:57.3]} 3. dxe5 {[%clk 0:04:55.6]} 3... Ng4 {[%clk
0:04:56.4]} 4. Bf4 {[%clk 0:04:54.8]} 4... Nc6 {[%clk 0:04:55.2]} 5. Nf3 {[%clk
0:04:53.9]} 5... Bb4+ {[%clk 0:04:53.5]} 6. Nbd2 {[%clk 0:04:52]} 6... Qe7
{[%clk 0:04:52.3]} 7. e3 {[%clk 0:04:50.1]} 7... Ngxe5 {[%clk 0:04:49.4]} 8.
Nxe5 {[%clk 0:04:48.6]} 8... Nxe5 {[%clk 0:04:48.3]} 9. Bxe5 {[%clk 0:04:47.6]}
9... Qxe5 {[%clk 0:04:47.3]} 10. Qb3 {[%clk 0:04:42.8]} 10... a5 {[%clk
0:04:41.9]} 11. a3 {[%clk 0:04:40.8]} 11... Bxd2+ {[%clk 0:04:40.2]} 12. Kxd2
{[%clk 0:04:39.3]} 12... d6 {[%clk 0:04:36.7]} 13. Qb5+ {[%clk 0:04:33.5]} 13...
Qxb5 {[%clk 0:04:31.4]} 14. cxb5 {[%clk 0:04:33]} 14... Be6 {[%clk 0:04:28.3]}
15. Rc1 {[%clk 0:04:30.6]} 15... Kd7 {[%clk 0:04:26.9]} 16. a4 {[%clk
0:04:23.7]} 16... Rhc8 {[%clk 0:04:22.5]} 17. g3 {[%clk 0:04:21.6]} 17... Bd5
{[%clk 0:04:18.3]} 18. Rg1 {[%clk 0:04:15.9]} 18... f5 {[%clk 0:04:13.4]} 19. g4
{[%clk 0:04:08.9]} 19... fxg4 {[%clk 0:04:04.7]} 20. Rxg4 {[%clk 0:04:06.8]}
20... g6 {[%clk 0:04:02.6]} 21. Bh3 {[%clk 0:04:02.7]} 21... Be6 {[%clk
0:04:01.7]} 22. Rh4 {[%clk 0:03:56]} 22... Bxh3 {[%clk 0:03:58.4]} 23. Rxh7+
{[%clk 0:03:54.4]} 23... Ke6 {[%clk 0:03:56.1]} 24. Rxh3 {[%clk 0:03:53.3]}
24... c6 {[%clk 0:03:49.2]} 25. bxc6 {[%clk 0:03:50.1]} 25... Rxc6 {[%clk
0:03:47.1]} 26. Rxc6 {[%clk 0:03:49.1]} 26... bxc6 {[%clk 0:03:46]} 27. b3
{[%clk 0:03:43.4]} 27... Rb8 {[%clk 0:03:39.4]} 28. Kc3 {[%clk 0:03:42.3]} 28...
Rf8 {[%clk 0:03:35.7]} 29. f4 {[%clk 0:03:40.1]} 29... Kf5 {[%clk 0:03:28]} 30.
Rg3 {[%clk 0:03:36.2]} 30... d5 {[%clk 0:03:20.1]} 31. b4 {[%clk 0:03:29.3]}
31... axb4+ {[%clk 0:03:17.4]} 32. Kxb4 {[%clk 0:03:28.5]} 32... Rf6 {[%clk
0:03:12.1]} 33. Kc5 {[%clk 0:03:25.5]} 33... Ke4 {[%clk 0:03:10.9]} 34. a5
{[%clk 0:03:23.9]} 34... d4 {[%clk 0:02:59.4]} 35. exd4 {[%clk 0:03:19.8]} 35...
Kxf4 {[%clk 0:02:58.2]} 36. Rb3 {[%clk 0:03:13.7]} 36... Ke4 {[%clk 0:02:54]}
37. a6 {[%clk 0:03:11.5]} 37... Rf5+ {[%clk 0:02:52.7]} 38. Kb6 {[%clk
0:03:09.2]} 38... Kxd4 {[%clk 0:02:47.8]} 39. a7 {[%clk 0:03:06.5]} 39... Rf8
{[%clk 0:02:46.6]} 40. Kxc6 {[%clk 0:03:05.1]} 40... Ra8 {[%clk 0:02:44]} 41.
Kb7 {[%clk 0:03:03.8]} 1-0